Cogmind - Beta 17 @@@ ROGUE MODE // 2026.07.22 @ 14:58:35 Player: winnking222 Result: Destroyed by 99-CO3(R) with Subdweller Machine Gun Performance ------------- Evolutions (0) 0 Regions Visited (2) 400 Robots Destroyed (18) 90 Value Destroyed (393) 393 Prototype IDs (0) 0 Alien Tech Used (0) 0 Bonus (0) 0 TOTAL SCORE: 883 Bonus ------- None Cogmind --------- Core Integrity 0/250 Matter 271/300 Energy 258/265 System Corruption 0% Temperature Cool (0) Movement Treading (320) Ox2 Location -10/Subcaves Parts ------- > --- POWER (1) -------- Improved Ion Engine > --- PROPULSION (2) --- Light Treads Light Treads > --- UTILITY (2) ------ Huge Storage Unit Hardened Light Armor Plating > --- WEAPON (2) ------- Subdweller Laser Subdweller Machine Gun > --- INVENTORY (25) --- Subdweller Power Source Subdweller Power Source Light Treads Light Treads Subdweller Monowheel Subdweller Monowheel Subdweller Monowheel Improved Heat Sink Small Storage Unit High-capacity Matter Pod (200) Structural Scanner Subdweller Optics Seismic Detector Hardened Light Armor Plating Hardened Light Armor Plating Hardened Light Armor Plating Scrap Shield Shield Generator Makeshift Hacking Suite Autogun Autogun Battle Rifle Plasma Cutter Makeshift Spear Peak State ------------ > --- POWER ------------ Improved Ion Engine > --- PROPULSION ------- Subdweller Monowheel Subdweller Monowheel > --- UTILITY ---------- Huge Storage Unit Hardened Light Armor Plating > --- WEAPON ----------- Autogun Barrage Gun > --- INVENTORY -------- Subdweller Power Source Subdweller Power Source Light Treads Light Treads Light Treads Light Treads Subdweller Monowheel Improved Heat Sink Small Storage Unit High-capacity Matter Pod Structural Scanner Subdweller Optics Seismic Detector Light Armor Plating Hardened Light Armor Plating Hardened Light Armor Plating Hardened Light Armor Plating Shield Generator Subdweller Laser Beam Cannon Autogun Autogun Autogun Plasma Cutter Makeshift Spear [Rating: 18] Favorites ----------- Power Improved Ion Engine Engine Improved Ion Engine Propulsion Light Treads Treads Light Treads Wheel Compact Wheel Utility Huge Storage Unit Device Seismic Detector Storage Huge Storage Unit Protection Hardened Light Armor Plating Weapon Light Assault Rifle Energy Gun Subdweller Laser Energy Cannon Beam Cannon Ballistic Gun Light Assault Rifle Piercing Weapon Makeshift Spear Build | -11 -10 -10 ------- Run | Yrd Mat Sub Slots Evolved . | . . . Power . | . . . Propulsion . | . . . Utility . | . . . Weapon . | . . . Parts Attached 25 | 7 6 12 Power 3 | 1 1 1 Engine 3 | 1 1 1 Core . | . . . Reactor . | . . . Propulsion 8 | 2 1 5 Treads 5 | 2 1 2 Leg . | . . . Wheel 3 | . . 3 Hover . | . . . Flight . | . . . Utility 4 | 2 1 1 Device 1 | 1 . . Storage 2 | 1 1 . Processor . | . . . Hackware . | . . . Protection 1 | . . 1 Artifact . | . . . Weapon 10 | 2 3 5 Energy Gun 1 | . . 1 Energy Cannon 1 | . 1 . Ballistic Gun 7 | 2 2 3 Ballistic Cannon . | . . . Launcher . | . . . Special Weapon . | . . . Impact Weapon . | . . . Slashing Weapon . | . . . Piercing Weapon 1 | . . 1 Special Melee Weapon . | . . . Unidentified Prototypes . | . . . Parts Lost 2 | . 1 1 Power 1 | . . 1 Propulsion . | . . . Utility . | . . . Weapon 1 | . 1 . Highest Loss Streak 1 | . 1 1 To Critical Strikes . | . . . Average Backups 16 | 5 12 24 Power 1 | . 1 1 Propulsion 4 | 3 3 4 Utility 7 | . 5 11 Weapon 2 | . 1 4 Tool/Special . | . . . Unused Backups 26 | . 6 20 Power 3 | . 1 2 Propulsion 6 | . 3 3 Utility 12 | . . 12 Weapon 4 | . 2 2 Tool/Special 1 | . . 1 Average Slot Usage (%) 99 | . 100 99 Engine 13 | . 14 13 Treads 26 | . 28 24 Wheel 1 | . . 3 Device 8 | . 14 1 Storage 14 | . 14 14 Protection 5 | . . 12 Energy Gun 5 | . . 11 Ballistic Gun 22 | . 27 15 Peak Build Rating 18 | 7 13 18 Average Rating 11 | 6 9 15 On Entrance 6 | . 7 13 Avg Prop Armor Cover (%) 9 | . . 9 Naked Turns . | . . . Heaviest Build 100 | 13 94 100 Greatest Support 40 | 40 40 40 Greatest Overweight (x) 6 | . 2 6 Average Overweight (x) 1 | . 1 2 Largest Inventory Capacity 25 | 8 25 25 Average Capacity 22 | 7 21 25 Most Carried 25 | 7 23 25 Average Carried 17 | 5 12 24 Final Capacity 25 | 8 25 25 Final Carried 25 | 7 21 25 Class Distribution -------------------- 100% | Mutant Dominant Class ---------------- Mutant | -10/Materials Mutant | -10/Subcaves Resources | -11 -10 -10 ----------- Run | Yrd Mat Sub Matter Collected 890 | 326 310 254 Remotely . | . . . Salvage Created 719 | 213 253 253 Parts 37 | 9 15 13 Haulers Intercepted 1 | . 1 . Recyclers Shooed . | . . . Parts Field Recycled . | . . . Retrieved Matter . | . . . Parts Self-Destructed 8 | . . 8 Prevented . | . . . Parts Restored . | . . . Kills | -11 -10 -10 ------- Run | Yrd Mat Sub Combat Hostiles Destroyed 11 | . 6 5 Guns 10 | . 5 5 Cannons 1 | . 1 . Classes Destroyed 7 | 2 3 2 Tunneler 5 | 5 . . Hauler 1 | . 1 . Recycler 1 | 1 . . Swarmer 3 | . 3 . Grunt 3 | . 3 . Sentry 1 | . . 1 Subdweller 4 | . . 4 Best Kill Streak 3 | 3 3 2 Combat Bots Only 3 | . 3 2 Max Kills in Single Turn 1 | 1 1 1 Gunslinging . | . . . Exploded . | . . . Melee . | . . . Uniques/NPCs Destroyed . | . . . Combat | -11 -10 -10 -------- Run | Yrd Mat Sub Hostile Shots Fired 74 | . 43 31 Missed 18 | . 10 8 Hits 56 | . 33 23 Projectile 56 | . 33 23 Critical Strikes 2 | . 2 . Damage Taken 1162 | . 478 684 Core 250 | . 60 190 Absorbed by Shields . | . . . Core Remaining (%) 100 | 100 . . Volleys Fired 87 | 28 30 29 Largest 2 | 2 2 2 Hottest 90 | 40 80 90 Shots Fired 167 | 56 60 51 Gun 158 | 56 55 47 Cannon 9 | . 5 4 Launcher . | . . . Special . | . . . Kinetic 142 | 56 55 31 Thermal 25 | . 5 20 Explosive . | . . . Electromagnetic . | . . . Robot Hit Streak 27 | 8 13 27 Robot Miss Streak 3 | 3 3 1 Penetration Max . | . . . Secondary Targets 3 | . 2 1 Max Gunslinging Chain 1 | . 1 1 Shots Hit Robots 112 | 33 45 34 Core Hits 37 | 12 15 10 Critical Kills 1 | . . 1 Critical Parts Destroyed 2 | . 1 1 Critical Strikes 4 | . 1 3 Destroy 4 | . 1 3 Melee Attacks 7 | . . 7 Impact . | . . . Slashing . | . . . Piercing 7 | . . 7 Sneak Attacks . | . . . Combat Hostiles . | . . . Follow-up Attacks . | . . . Damage Inflicted 1321 | 278 417 626 Guns 1233 | 278 329 626 Cannons 88 | . 88 . Explosions . | . . . Melee . | . . . Ramming . | . . . Kinetic 1051 | 278 329 444 Thermal 270 | . 88 182 Explosive . | . . . Electromagnetic . | . . . Impact . | . . . Slashing . | . . . Piercing . | . . . Highest Corruption . | . . . Average Corruption . | . . . Corruption Purged . | . . . Corruption Blocked . | . . . Overload Shots . | . . . Overflow Damage . | . . . Projectiles . | . . . Explosions . | . . . Melee . | . . . Knockbacks . | . . . Impact . | . . . Kinetic . | . . . Secondary . | . . . Self-Inflicted Damage . | . . . Shots . | . . . Rammed . | . . . Targets Rammed . | . . . Kicked . | . . . Crushed . | . . . Highest Temperature 190 | . 190 20 Average Temperature 34 | . 39 15 Received Heat Transfer 222 | . 177 45 Siege Activations . | . . . Martial Activations . | . . . Shielding Activations . | . . . Robots Disrupted . | . . . Combat Hostiles . | . . . Robots Corrupted . | . . . Combat Hostiles . | . . . Parts Fried . | . . . Impact Corruptions . | . . . Robots Melted . | . . . Combat Hostiles . | . . . Parts Melted . | . . . Heat Transferred 410 | . 185 225 Parts Sabotaged . | . . . Parts Stolen . | . . . Parts Stripped . | . . . Power Chain Reactions . | . . . Alert | -11 -10 -10 ------- Run | Yrd Mat Sub Maximum Alert Level . | . . . Low Security (%) 100 | 100 100 . Level 1 . | . . . Level 2 . | . . . Level 3 . | . . . Level 4 . | . . . Level 5 . | . . . High Security . | . . . Max Security . | . . . Peak Influence 60 | 10 60 . Initial . | . . . Average 5 | 1 6 . Influence Increases 207 | 30 157 20 Destroy 0b10 Robot/C 140 | . 120 20 Destroy 0b10 Robot/NC 35 | 30 5 . Destroy Leader 32 | . 32 . Influence Decreases 207 | 30 157 20 Time Decay 207 | 30 157 20 Squads Dispatched 2 | . 2 . Investigation . | . . . Extermination . | . . . Reinforcement 2 | . 2 . Assault . | . . . Garrison . | . . . Intercept . | . . . Searches Triggered . | . . . Construction Impeded . | . . . Haulers Reinforced . | . . . Active Scanning Responses . | . . . Cargo Convoy Interrupts . | . . . Stealth | -11 -10 -10 --------- Run | Yrd Mat Sub Distress Signals 2 | . 2 . Communications Jammed . | . . . Distress Signals . | . . . Times Spotted 19 | . 12 7 Peak Tracking Total 3 | . 3 2 Tactical Retreats . | . . . Traps | -11 -10 -10 ------- Run | Yrd Mat Sub Traps Triggered 4 | . . 4 Indirectly . | . . . Trap Hack Attempts . | . . . Triggered . | . . . Disarmed . | . . . Reprogrammed . | . . . Reused . | . . . Traps Extracted . | . . . Installed . | . . . Triggered . | . . . Machines | -11 -10 -10 ---------- Run | Yrd Mat Sub Machines Disabled . | . . . Max in Single Turn . | . . . Machines Repaired . | . . . Machines Dismantled . | . . . Machines Sabotaged . | . . . Overloaded Fab Kills . | . . . Hacking | -11 -10 -10 --------- Run | Yrd Mat Sub Machines Accessed 3 | . 3 . Terminals 3 | . 3 . Fabricators . | . . . Repair Stations . | . . . Recycling Units . | . . . Scanalyzers . | . . . Garrison Access . | . . . Total Hacks 13 | . 13 . Successful 5 | . 5 . Failed 8 | . 8 . Catastrophic . | . . . Database Lockouts . | . . . Manual 12 | . 12 . Terminals 13 | . 13 . Fabricators . | . . . Repair Stations . | . . . Recycling Units . | . . . Scanalyzers . | . . . Garrison Access . | . . . Terminal Hacks . | . . . Fabricator Hacks . | . . . Repair Station Hacks . | . . . Recycling Unit Hacks . | . . . Scanalyzer . | . . . Garrison Access Hacks . | . . . Unauthorized Hacks 5 | . 5 . Terminals 5 | . 5 . Track 1 | . 1 . Botnet 2 | . 2 . Skim 2 | . 2 . Fabricators . | . . . Repair Stations . | . . . Recycling Units . | . . . Scanalyzers . | . . . Garrison Access . | . . . Data Cores Recovered . | . . . Used . | . . . Hacking Detections 3 | . 3 . Full Trace Events 3 | . 3 . Feedback Events . | . . . Feedback Blocked . | . . . Robot Schematics Acquired . | . . . Robots Built . | . . . Authchips . | . . . Time . | . . . Total Robot Build Rating . | . . . Part Schematics Acquired . | . . . Parts Built . | . . . Authchips . | . . . Time . | . . . Total Part Build Rating . | . . . Part Studies Acquired . | . . . Parts Repaired . | . . . Time . | . . . Parts Recycled . | . . . Recycled Matter . | . . . Retrieved Matter . | . . . Retrieved Components . | . . . Parts Scanalyzed . | . . . Part Schematics Acquired . | . . . Parts Damaged . | . . . Bothacking | -11 -10 -10 ------------ Run | Yrd Mat Sub Used RIF Installer . | . . . Robots Hacked . | . . . Non-combat . | . . . Combat . | . . . Robot Hacks Applied . | . . . Relay Couplers Released . | . . . Fabnet Peak Effective % . | . . . Robots Rewired . | . . . Allies Hacked . | . . . Hacks Repelled . | . . . Allies | -11 -10 -10 -------- Run | Yrd Mat Sub Total Allies . | . . . Largest Group . | . . . Highest-Rated Group . | . . . Highest-Rated Ally . | . . . Total Orders . | . . . Ally Attacks . | . . . Total Damage . | . . . Kills . | . . . Allies Corrupted . | . . . Allies Melted . | . . . Intel | -11 -10 -10 ------- Run | Yrd Mat Sub Active Infowar (turns) 2318 | 110 1979 229 Seismic 2318 | 110 1979 229 Robot Analysis Total . | . . . Derelict Logs Recovered 2 | . . 2 Drone Launches . | . . . Drone Recoveries . | . . . Exploration | -11 -10 -10 ------------- Run | Yrd Mat Sub Turns Passed 3812 | 210 1979 1623 Spaces Moved 1224 | 82 686 456 Core 13 | 13 . . Treads 1091 | 69 686 336 Legs . | . . . Wheels 120 | . . 120 Hover . | . . . Flight . | . . . Fastest Speed 50 | 50 160 150 Average Speed 263 | 142 265 280 Slowest Speed 480 | 160 320 480 Overloaded Moves . | . . . Propulsion Burnouts . | . . . Robots Hopped . | . . . Potential Cave-ins 5 | . 1 4 Cave-ins Triggered . | . . . Exploration Rate (%) 38 | 5 83 27 Regions Visited 2 Branch Regions 1 Pre-discovered Areas 2 | . . 2 Known Exits Taken . | . . . Unknown Exits Taken 2 | 1 1 . Scrap Searched 4 | . . 4 Spaces Dug 7 | . . 7 Terrain Destroyed 8 | . . 8 Melee 6 | . . 6 Projectile 2 | . . 2 AOE . | . . . Terrain Rammed . | . . . Walls Destroyed . | . . . Machines Disabled . | . . . Actions | -11 -10 -10 --------- Run | Yrd Mat Sub Total 1672 | 130 797 745 Wait 255 | . 42 213 Move 1222 | 81 685 456 Hop . | . . . Pick Up 49 | 14 24 11 Fast Attach 1 | . . 1 Attach 10 | 7 1 2 Detach . | . . . Swap 19 | . 5 14 Drop 22 | . 10 12 Fire 87 | 28 30 29 Melee 7 | . . 7 Ram . | . . . Kick . | . . . Crush . | . . . Escape Stasis . | . . . Rewire . | . . . Trap . | . . . Miscellaneous . | . . . Route ------- -11/Scrapyard -10/Materials (discovered 4 exits: [*Mat x2] / [*Min] / [*Sub]) -10/Subcaves (discovered 1 exit: [*Mat]) History --------- Turn | Location | Event 8 | -11/Scrapyard | Discovered new exit (range 16) 211 | -11/Scrapyard | Entered Materials 212 | -10/Materials | Met a group of wandering Federalists 300 | -10/Materials | Lost 3 allies 307 | -10/Materials | Build established: Mutant 311 | -10/Materials | Discovered new exit (range 11) 352 | -10/Materials | Discovered new exit (range 14) 441 | -10/Materials | Discovered new exit (range 11) 1508 | -10/Materials | Discovered new exit (range 3) 2190 | -10/Materials | Entered Subcaves 2191 | -10/Subcaves | Continued accompanying wandering Federalists (2) 2191 | -10/Subcaves | Discovered new exit (range 13) 2433 | -10/Subcaves | Core integrity fell below 50% 2491 | -10/Subcaves | Core integrity fell below 20% 3523 | -10/Subcaves | Shifting Twisted Machinery released Sub. Machine Gun 3532 | -10/Subcaves | Shifting Twisted Machinery released Battle Rifle 3813 | -10/Subcaves | Destroyed by 99-CO3(R) with Subdweller Machine Gun Last Messages --------------- 02840_ Subatomizers dissect the Disposable Heat Sink. 02914_ Acquired 3 matter. 02996_ Subatomizers dissect the Aluminum Leg. 03001_ Triggered Shrapnel Trap. 03001_ An expanding cloud of shrapnel blasts out in all directions. 03009_ Subatomizers dissect the Aluminum Leg. Sub. Machine Gun falls loose from the Twisted Machinery. Battle Rifle falls loose from the Twisted Machinery. 03569_ Dropped Barrage Gun. 03570_ Acquired Sub. Machine Gun. 03590_ Dropped Autogun. 03597_ Acquired Battle Rifle. 03680_ Subatomizers dissect the Autogun. 03812_ BG-KKY(R) suffers critical hit (Destroy). 03812_ Destroyed Sub. Machine Gun. Map ----- +----------------------------------------------------+ | ????????????????????????????????????????????????## | | ?????????????????????????????????????????????????? | | ?????????????????????????????????????????????????? | | ?????????????????????????????????????????????????? | | ?????????????????????????????????????????????????? | | ?????????????????????????????????????????????????? | | ?????????????????????????????????????????????????? | | ?????????????????????????????????????????????????? | | ?????????????????????????????????????????????????? | | ?????????????????????????????????????????????????? | | ?????????????????????????????????????????????????? | | ?????????????????????????????????????????????????? | | ?????????????????????????????????????????????????? | | ?????????????????????????????????????????????????? | | ?????????????????????????????????????????????????? | | ?????????????????????????????????????????????????? | | ???????????????????##????????????????????????????? | | ???????????????????? ??????###?????????########?? | | ???????????????????## ???#### #####?????# ### | | ???????????????????#" ?## ## #?????# ## | | ???????????????????#" ## #??????# | | ???????????????????#" #?????## | | ?????????????????????# #?##??# | | ???????????????????### R ## ##?## ### | | ???????????????????# R ##?# ### | | ??????????????????# ##@ ### | | ??????????????? "???### ## ### | | ???????????? ???????# ### #?# | | ????????????? # ?????????## ##?# ##?## | | ???????????????????????????## ########## | | ????????????????????????????## ## ## | | ?????????????????????????????# ## | | ?????????????????????????????## ### | | ??????????????????????????????# #?### # | | ??????????????????????????????## #???## # | | ???????????????????????????????# ????# "" | | ???????????????????????????????# #???# "" "" | | ???????????????????????????????# #???# """"" | | ???????????????????????????????# #???#### """ | | ??????????????????????????????? ??????#### "" | | ??????????????????????????????? ?????????## " | | ???????????????????????????????## ??????????## " | | ?????????????????????????????????# ???????###### | | ?????????????????????????????????? ?????## ## | | ?????????????????????????????????? ???????# """ | | ?????????????????????????????????? ???????##"""""" | | ???????????????????????????????????????????# """ | | ???????????????????????????????????????????# [ | | ??????????????????????????????????????????## | | ??????????????????????????????????????????# | +----------------------------------------------------+ Best States ------------- Heat Dissipation 25 Energy Generation 12 Energy Capacity 265 Matter Stores 300 Matter Capacity 300 Sight Range 16 Terrain Scan Density 10 Armor Coverage 150 Evasion (%) 50 Recoil Reduction 2 Item Schematics ----------------- None Robot Schematics ------------------ None Fabricated ------------ Nothing Repaired ---------- Nothing Studied --------- None Alien Tech Used ----------------- None Achievements -------------- None Challenges ------------ None Game ------ Seed TripodStructuralWartreads Manual? 0 Play Time 00:12:57 Cumulative 215.5 hours Start 2026.07.22 @ 14:46:51 End 2026.07.22 @ 14:58:35 Sessions 1 Manual Loads 0 Difficulty Rogue Special Mode None Game No. 298 Rogue 298 Adventurer 0 Explorer 0 Win Type - Total 3 Types 2/0/0/1/0/0/0/0/0/0 Lore% 74 Gallery% 69 Achievement% 57 Wizard Run 0 Options --------- Layout 1 ASCII 0 Keyboard 0 Movement Mouse Keybinds 0 Fullscreen 1 Font 24/Smallcaps Map View 50x35 Zoom Use 0% Tactical HUD 1 Map Filters NONE Filters NONE Steam 1 RUN: 90c55945-c1a2-4e93-8ff6-55a8b631e3c0